Cogmind - Beta 17.1 @@@ ROGUE MODE // 2026.09.02 @ 16:16:37 Player: Scuttle Result: Destroyed by S-27 Virus with Autogun Performance ------------- Evolutions (4) 2000 Regions Visited (9) 1800 Robots Destroyed (0) 0 Value Destroyed (0) 0 Prototype IDs (23) 460 Alien Tech Used (0) 0 Bonus (1925) 1925 TOTAL SCORE: 6185 Bonus ------- Pacifist 1125 Entered DSFs 500 Aligned with FarCom 300 Cogmind --------- Core Integrity 0/850 Matter 260/300 Energy 98/100 System Corruption 0% Temperature Cool (0) Movement Core (50) Location -6/Lower Caves Parts ------- > --- POWER (1) -------- (None) > --- PROPULSION (2) --- (None) > --- UTILITY (10) ----- (None) > --- WEAPON (2) ------- (None) > --- INVENTORY (5) ---- Advanced Weight Redist. System Improved Signal Interpreter Advanced Signal Interpreter Trap Reconfigurator Light EM Pulse Cannon Peak State ------------ > --- POWER ------------ (None) > --- PROPULSION ------- (None) > --- UTILITY ---------- (None) > --- WEAPON ----------- EM Pulse Gun Light Assault Rifle > --- INVENTORY -------- Advanced Weight Redist. System Trap Reconfigurator [Rating: 3] Favorites ----------- Power None Propulsion None Utility None Weapon Light Assault Rifle Energy Gun EM Pulse Gun Ballistic Gun Light Assault Rifle Build | -11 -10 -10 -10 -9 -8 -7 -7 -6 -6 ------- Run | Yrd Mat Min Exi Min Mat Fac DSF Fac Low Slots Evolved 8 | . . . . . 4 2 . 2 . Power . | . . . . . . . . . . Propulsion . | . . . . . . . . . . Utility 8 | . . . . . 4 2 . 2 . Weapon . | . . . . . . . . . . Parts Attached 2 | 2 . . . . . . . . . Power . | . . . . . . . . . . Engine . | . . . . . . . . . . Core . | . . . . . . . . . . Reactor . | . . . . . . . . . . Propulsion . | . . . . . . . . . . Treads . | . . . . . . . . . . Leg . | . . . . . . . . . . Wheel . | . . . . . . . . . . Hover . | . . . . . . . . . . Flight . | . . . . . . . . . . Utility . | . . . . . . . . . . Device . | . . . . . . . . . . Storage . | . . . . . . . . . . Processor . | . . . . . . . . . . Hackware . | . . . . . . . . . . Protection . | . . . . . . . . . . Artifact . | . . . . . . . . . . Weapon 2 | 2 . . . . . . . . . Energy Gun 1 | 1 . . . . . . . . . Energy Cannon . | . . . . . . . . . . Ballistic Gun 1 | 1 . . . . . . . . . Ballistic Cannon . | . . . . . . . . . . Launcher . | . . . . . . . . . . Special Weapon . | . . . . . . . . . . Impact Weapon . | . . . . . . . . . . Slashing Weapon . | . . . . . . . . . . Piercing Weapon . | . . . . . . . . . . Special Melee Weapon . | . . . . . . . . . . Unidentified Prototypes . | . . . . . . . . . . Parts Lost 1 | . . . . . . . 1 . . Power . | . . . . . . . . . . Propulsion . | . . . . . . . . . . Utility . | . . . . . . . . . . Weapon 1 | . . . . . . . 1 . . Highest Loss Streak 1 | . . . . . . . 1 . . To Critical Strikes . | . . . . . . . . . . Average Backups 2 | . . . . 1 1 1 2 3 5 Power . | . . . . . . . . . . Propulsion . | . . . . . . . . . . Utility 2 | . . . . 1 1 1 2 2 4 Weapon . | . . . . . . . . 1 1 Tool/Special . | . . . . . . . . . . Unused Backups 5 | . . . . . . . . . 5 Power . | . . . . . . . . . . Propulsion . | . . . . . . . . . . Utility 4 | . . . . . . . . . 4 Weapon 1 | . . . . . . . . . 1 Tool/Special . | . . . . . . . . . . Average Slot Usage (%) 11 | . 28 28 28 28 18 15 7 . . Energy Gun 5 | . 14 14 14 14 9 7 3 . . Ballistic Gun 5 | . 14 14 14 14 9 7 3 . . Peak Build Rating 3 | 2 2 2 2 2 2 3 3 2 2 Average Rating 1 | 1 2 2 2 2 2 2 1 1 2 On Entrance 1 | . 2 2 2 2 2 2 3 1 2 Avg Prop Armor Cover (%) . | . . . . . . . . . . Naked Turns 323 | . . . . . . . 23 193 107 Heaviest Build 3 | 3 3 3 3 3 3 3 3 . . Greatest Support 3 | 3 3 3 3 3 3 3 3 3 3 Greatest Overweight (x) . | . . . . . . . . . . Average Overweight (x) . | . . . . . . . . . . Largest Inventory Capacity 5 | 5 5 5 5 5 5 5 5 5 5 Average Capacity 5 | 5 5 5 5 5 5 5 5 5 5 Most Carried 5 | . . . 1 1 1 2 3 5 5 Average Carried 2 | . . . . 1 1 1 2 4 5 Final Capacity 5 | 5 5 5 5 5 5 5 5 5 5 Final Carried 5 | . . . 1 1 1 2 3 5 5 Class Distribution -------------------- 100% | Mutant Dominant Class ---------------- Mutant | -10/Materials Mutant | -10/Mines Mutant | -10/Exiles Mutant | -9/Mines Mutant | -8/Materials Mutant | -7/Factory Mutant | -7/DSF Mutant | -6/Factory Mutant | -6/Lower Caves Resources | -11 -10 -10 -10 -9 -8 -7 -7 -6 -6 ----------- Run | Yrd Mat Min Exi Min Mat Fac DSF Fac Low Matter Collected 162 | 66 . . . 70 . . . . 26 Remotely . | . . . . . . . . . . Salvage Created . | . . . . . . . . . . Parts . | . . . . . . . . . . Haulers Intercepted . | . . . . . . . . . . Recyclers Shooed . | . . . . . . . . . . Parts Field Recycled . | . . . . . . . . . . Retrieved Matter . | . . . . . . . . . . Parts Self-Destructed . | . . . . . . . . . . Prevented . | . . . . . . . . . . Parts Restored . | . . . . . . . . . . Kills | -11 -10 -10 -10 -9 -8 -7 -7 -6 -6 ------- Run | Yrd Mat Min Exi Min Mat Fac DSF Fac Low Combat Hostiles Destroyed . | . . . . . . . . . . Classes Destroyed . | . . . . . . . . . . Best Kill Streak . | . . . . . . . . . . Combat Bots Only . | . . . . . . . . . . Max Kills in Single Turn . | . . . . . . . . . . Gunslinging . | . . . . . . . . . . Exploded . | . . . . . . . . . . Melee . | . . . . . . . . . . Uniques/NPCs Destroyed . | . . . . . . . . . . Combat | -11 -10 -10 -10 -9 -8 -7 -7 -6 -6 -------- Run | Yrd Mat Min Exi Min Mat Fac DSF Fac Low Hostile Shots Fired 122 | . . . . . . . 1 44 77 Missed 61 | . . . . . . . . 23 38 Hits 61 | . . . . . . . 1 21 39 Projectile 61 | . . . . . . . 1 21 39 Critical Strikes 2 | . . . . . . . 1 1 . Damage Taken 900 | . . . . . . . 49 277 574 Core 855 | . . . . . . . 4 277 574 Absorbed by Shields . | . . . . . . . . . . Core Remaining (%) 99 | 100 . . . 100 100 . 99 . . Volleys Fired . | . . . . . . . . . . Largest . | . . . . . . . . . . Hottest . | . . . . . . . . . . Shots Fired . | . . . . . . . . . . Gun . | . . . . . . . . . . Cannon . | . . . . . . . . . . Launcher . | . . . . . . . . . . Special . | . . . . . . . . . . Kinetic . | . . . . . . . . . . Thermal . | . . . . . . . . . . Explosive . | . . . . . . . . . . Electromagnetic . | . . . . . . . . . . Robot Hit Streak . | . . . . . . . . . . Robot Miss Streak . | . . . . . . . . . . Penetration Max . | . . . . . . . . . . Secondary Targets . | . . . . . . . . . . Shots Hit Robots . | . . . . . . . . . . Core Hits . | . . . . . . . . . . Critical Kills . | . . . . . . . . . . Critical Parts Destroyed . | . . . . . . . . . . Critical Strikes . | . . . . . . . . . . Melee Attacks . | . . . . . . . . . . Impact . | . . . . . . . . . . Slashing . | . . . . . . . . . . Piercing . | . . . . . . . . . . Sneak Attacks . | . . . . . . . . . . Combat Hostiles . | . . . . . . . . . . Follow-up Attacks . | . . . . . . . . . . Damage Inflicted 13 | . . . . . . . . 13 . Guns . | . . . . . . . . . . Cannons . | . . . . . . . . . . Explosions . | . . . . . . . . . . Melee . | . . . . . . . . . . Ramming 13 | . . . . . . . . 13 . Kinetic . | . . . . . . . . . . Thermal . | . . . . . . . . . . Explosive . | . . . . . . . . . . Electromagnetic . | . . . . . . . . . . Impact . | . . . . . . . . . . Slashing . | . . . . . . . . . . Piercing . | . . . . . . . . . . Highest Corruption . | . . . . . . . . . . Average Corruption . | . . . . . . . . . . Corruption Purged . | . . . . . . . . . . Corruption Blocked . | . . . . . . . . . . Overload Shots . | . . . . . . . . . . Overflow Damage . | . . . . . . . . . . Projectiles . | . . . . . . . . . . Explosions . | . . . . . . . . . . Melee . | . . . . . . . . . . Knockbacks 1 | . . . . . . . . 1 . Impact 1 | . . . . . . . . 1 . Kinetic . | . . . . . . . . . . Secondary . | . . . . . . . . . . Self-Inflicted Damage 5 | . . . . . . . . 5 . Shots . | . . . . . . . . . . Rammed 4 | . . . . . . . . 4 . Targets Rammed 4 | . . . . . . . . 4 . Kicked . | . . . . . . . . . . Crushed . | . . . . . . . . . . Highest Temperature . | . . . . . . . . . . Average Temperature . | . . . . . . . . . . Received Heat Transfer 156 | . . . . . . . . 129 27 Siege Activations . | . . . . . . . . . . Martial Activations . | . . . . . . . . . . Shielding Activations . | . . . . . . . . . . Robots Disrupted . | . . . . . . . . . . Combat Hostiles . | . . . . . . . . . . Robots Corrupted . | . . . . . . . . . . Combat Hostiles . | . . . . . . . . . . Parts Fried . | . . . . . . . . . . Impact Corruptions . | . . . . . . . . . . Robots Melted . | . . . . . . . . . . Combat Hostiles . | . . . . . . . . . . Parts Melted . | . . . . . . . . . . Heat Transferred . | . . . . . . . . . . Parts Sabotaged . | . . . . . . . . . . Parts Stolen . | . . . . . . . . . . Parts Stripped . | . . . . . . . . . . Power Chain Reactions . | . . . . . . . . . . Alert | -11 -10 -10 -10 -9 -8 -7 -7 -6 -6 ------- Run | Yrd Mat Min Exi Min Mat Fac DSF Fac Low Maximum Alert Level . | . . . . . . . . . . Low Security (%) 100 | 100 100 100 . 100 100 100 100 100 . Level 1 . | . . . . . . . . . . Level 2 . | . . . . . . . . . . Level 3 . | . . . . . . . . . . Level 4 . | . . . . . . . . . . Level 5 . | . . . . . . . . . . High Security . | . . . . . . . . . . Max Security . | . . . . . . . . . . Peak Influence 190 | . . . . . . . 15 190 . Initial 7 | . . . . . . . . 7 . Average 41 | . . . . . . . 2 73 . Influence Increases 300 | . . . . . . . 15 240 45 Lose Combat Pursuer 300 | . . . . . . . 15 240 45 Influence Decreases 192 | . . . . . . . . 75 117 Entered New Map 75 | . . . . . . . . 8 67 Time Decay 117 | . . . . . . . . 67 50 Squads Dispatched 2 | . 1 . . . . . . 1 . Investigation 1 | . 1 . . . . . . . . Extermination . | . . . . . . . . . . Reinforcement 1 | . . . . . . . . 1 . Assault . | . . . . . . . . . . Garrison . | . . . . . . . . . . Intercept . | . . . . . . . . . . Searches Triggered . | . . . . . . . . . . Construction Impeded . | . . . . . . . . . . Haulers Reinforced . | . . . . . . . . . . Active Scanning Responses . | . . . . . . . . . . Cargo Convoy Interrupts . | . . . . . . . . . . Stealth | -11 -10 -10 -10 -9 -8 -7 -7 -6 -6 --------- Run | Yrd Mat Min Exi Min Mat Fac DSF Fac Low Distress Signals 2 | . . . . . . . . 2 . Communications Jammed . | . . . . . . . . . . Distress Signals . | . . . . . . . . . . Times Spotted 36 | . . . . . . . 1 26 9 Peak Tracking Total 9 | . . . . . . . 1 9 7 Tactical Retreats 7 | . . . . . . . 1 4 2 Traps | -11 -10 -10 -10 -9 -8 -7 -7 -6 -6 ------- Run | Yrd Mat Min Exi Min Mat Fac DSF Fac Low Traps Triggered 2 | . 1 . . . . . . 1 . Indirectly . | . . . . . . . . . . Trap Hack Attempts . | . . . . . . . . . . Triggered . | . . . . . . . . . . Disarmed . | . . . . . . . . . . Reprogrammed . | . . . . . . . . . . Reused . | . . . . . . . . . . Traps Extracted . | . . . . . . . . . . Installed . | . . . . . . . . . . Triggered . | . . . . . . . . . . Machines | -11 -10 -10 -10 -9 -8 -7 -7 -6 -6 ---------- Run | Yrd Mat Min Exi Min Mat Fac DSF Fac Low Machines Disabled . | . . . . . . . . . . Max in Single Turn . | . . . . . . . . . . Machines Repaired . | . . . . . . . . . . Machines Dismantled . | . . . . . . . . . . Machines Sabotaged . | . . . . . . . . . . Overloaded Fab Kills . | . . . . . . . . . . Hacking | -11 -10 -10 -10 -9 -8 -7 -7 -6 -6 --------- Run | Yrd Mat Min Exi Min Mat Fac DSF Fac Low Machines Accessed 4 | . . . 1 . . 1 . 2 . Terminals 3 | . . . . . . 1 . 2 . Fabricators . | . . . . . . . . . . Repair Stations . | . . . . . . . . . . Recycling Units . | . . . . . . . . . . Scanalyzers . | . . . . . . . . . . Garrison Access . | . . . . . . . . . . Total Hacks 5 | . . . 1 . . 2 . 2 . Successful 4 | . . . 1 . . 1 . 2 . Failed 1 | . . . . . . 1 . . . Catastrophic . | . . . . . . . . . . Database Lockouts . | . . . . . . . . . . Manual 1 | . . . 1 . . . . . . Terminals 4 | . . . . . . 2 . 2 . Fabricators . | . . . . . . . . . . Repair Stations . | . . . . . . . . . . Recycling Units . | . . . . . . . . . . Scanalyzers . | . . . . . . . . . . Garrison Access . | . . . . . . . . . . Terminal Hacks 4 | . . . 1 . . 1 . 2 . Open DSF 2 | . . . . . . 1 . 1 . Branch Access Points 1 | . . . . . . . . 1 . Proto ID Catalog 1 | . . . 1 . . . . . . Fabricator Hacks . | . . . . . . . . . . Repair Station Hacks . | . . . . . . . . . . Recycling Unit Hacks . | . . . . . . . . . . Scanalyzer . | . . . . . . . . . . Garrison Access Hacks . | . . . . . . . . . . Unauthorized Hacks . | . . . . . . . . . . Terminals . | . . . . . . . . . . Fabricators . | . . . . . . . . . . Repair Stations . | . . . . . . . . . . Recycling Units . | . . . . . . . . . . Scanalyzers . | . . . . . . . . . . Garrison Access . | . . . . . . . . . . Data Cores Recovered . | . . . . . . . . . . Used . | . . . . . . . . . . Hacking Detections 1 | . . . . . . . . 1 . Full Trace Events . | . . . . . . . . . . Feedback Events . | . . . . . . . . . . Feedback Blocked . | . . . . . . . . . . Robot Schematics Acquired . | . . . . . . . . . . Robots Built . | . . . . . . . . . . Authchips . | . . . . . . . . . . Time . | . . . . . . . . . . Total Robot Build Rating . | . . . . . . . . . . Part Schematics Acquired . | . . . . . . . . . . Parts Built . | . . . . . . . . . . Authchips . | . . . . . . . . . . Time . | . . . . . . . . . . Total Part Build Rating . | . . . . . . . . . . Part Studies Acquired . | . . . . . . . . . . Parts Repaired . | . . . . . . . . . . Time . | . . . . . . . . . . Parts Recycled . | . . . . . . . . . . Recycled Matter . | . . . . . . . . . . Retrieved Matter . | . . . . . . . . . . Retrieved Components . | . . . . . . . . . . Parts Scanalyzed . | . . . . . . . . . . Part Schematics Acquired . | . . . . . . . . . . Parts Damaged . | . . . . . . . . . . Bothacking | -11 -10 -10 -10 -9 -8 -7 -7 -6 -6 ------------ Run | Yrd Mat Min Exi Min Mat Fac DSF Fac Low Used RIF Installer . | . . . . . . . . . . Robots Hacked . | . . . . . . . . . . Non-combat . | . . . . . . . . . . Combat . | . . . . . . . . . . Robot Hacks Applied . | . . . . . . . . . . Relay Couplers Released . | . . . . . . . . . . Fabnet Peak Effective % . | . . . . . . . . . . Robots Rewired . | . . . . . . . . . . Allies Hacked . | . . . . . . . . . . Hacks Repelled . | . . . . . . . . . . Allies | -11 -10 -10 -10 -9 -8 -7 -7 -6 -6 -------- Run | Yrd Mat Min Exi Min Mat Fac DSF Fac Low Total Allies . | . . . . . . . . . . Largest Group . | . . . . . . . . . . Highest-Rated Group . | . . . . . . . . . . Highest-Rated Ally . | . . . . . . . . . . Total Orders . | . . . . . . . . . . Ally Attacks . | . . . . . . . . . . Total Damage . | . . . . . . . . . . Kills . | . . . . . . . . . . Allies Corrupted . | . . . . . . . . . . Allies Melted . | . . . . . . . . . . Intel | -11 -10 -10 -10 -9 -8 -7 -7 -6 -6 ------- Run | Yrd Mat Min Exi Min Mat Fac DSF Fac Low Active Infowar (turns) . | . . . . . . . . . . Robot Analysis Total . | . . . . . . . . . . Derelict Logs Recovered . | . . . . . . . . . . Drone Launches . | . . . . . . . . . . Drone Recoveries . | . . . . . . . . . . Exploration | -11 -10 -10 -10 -9 -8 -7 -7 -6 -6 ------------- Run | Yrd Mat Min Exi Min Mat Fac DSF Fac Low Turns Passed 566 | 13 29 15 109 12 27 31 30 193 107 Spaces Moved 1105 | 21 57 30 215 23 54 60 57 374 214 Core 1105 | 21 57 30 215 23 54 60 57 374 214 Treads . | . . . . . . . . . . Legs . | . . . . . . . . . . Wheels . | . . . . . . . . . . Hover . | . . . . . . . . . . Flight . | . . . . . . . . . . Fastest Speed 50 | 50 50 50 50 50 50 50 50 50 50 Average Speed 50 | 50 50 50 50 50 50 50 50 50 50 Slowest Speed 50 | 50 50 50 50 50 50 50 50 50 50 Overloaded Moves . | . . . . . . . . . . Propulsion Burnouts . | . . . . . . . . . . Robots Hopped . | . . . . . . . . . . Potential Cave-ins . | . . . . . . . . . . Cave-ins Triggered . | . . . . . . . . . . Exploration Rate (%) 23 | 4 13 8 59 13 11 2 69 14 38 Regions Visited 9 Branch Regions 4 Pre-discovered Areas . | . . . . . . . . . . Known Exits Taken 2 | . . . . . . 1 . 1 . Unknown Exits Taken 6 | 1 1 1 1 1 1 . . . . Scrap Searched 2 | . . . . 1 . . . . 1 Spaces Dug . | . . . . . . . . . . Terrain Destroyed . | . . . . . . . . . . Melee . | . . . . . . . . . . Projectile . | . . . . . . . . . . AOE . | . . . . . . . . . . Terrain Rammed . | . . . . . . . . . . Walls Destroyed . | . . . . . . . . . . Machines Disabled . | . . . . . . . . . . Actions | -11 -10 -10 -10 -9 -8 -7 -7 -6 -6 --------- Run | Yrd Mat Min Exi Min Mat Fac DSF Fac Low Total 1107 | 22 56 29 215 22 53 60 57 379 214 Wait . | . . . . . . . . . . Move 1096 | 20 56 29 214 22 53 59 56 373 214 Hop . | . . . . . . . . . . Pick Up 5 | . . . 1 . . 1 1 2 . Fast Attach 2 | 2 . . . . . . . . . Attach . | . . . . . . . . . . Detach . | . . . . . . . . . . Swap . | . . . . . . . . . . Drop . | . . . . . . . . . . Fire . | . . . . . . . . . . Melee . | . . . . . . . . . . Ram 4 | . . . . . . . . 4 . Kick . | . . . . . . . . . . Crush . | . . . . . . . . . . Escape Stasis . | . . . . . . . . . . Rewire . | . . . . . . . . . . Trap . | . . . . . . . . . . Miscellaneous . | . . . . . . . . . . Route ------- -11/Scrapyard -10/Materials -10/Mines -10/Exiles -9/Mines -8/Materials -7/Factory -7/DSF -6/Factory (discovered 2 exits: *Low x2) -6/Lower Caves History --------- Turn | Location | Event 9 | -11/Scrapyard | Discovered new exit (range 12) 14 | -11/Scrapyard | Entered Materials 37 | -10/Materials | Discovered new exit (range 6) 43 | -10/Materials | Entered Mines 56 | -10/Mines | Deemed a non-threat by the Exiles lab entrance 56 | -10/Mines | Discovered new exit (range 5) 58 | -10/Mines | Entered Exiles 70 | -10/Exiles | Met 8R-AWN 79 | -10/Exiles | Met EX-HEX 94 | -10/Exiles | Met EX-BIN 100 | -10/Exiles | Aligned with FarCom system 100 | -10/Exiles | Given EX-Vault access code 112 | -10/Exiles | Opened EX-Vault 116 | -10/Exiles | Found Trap Reconfigurator 128 | -10/Exiles | Warned to stay clear of 0b10 Research branches 144 | -10/Exiles | Met EX-DEC 162 | -10/Exiles | Discovered new exit (range 11) 167 | -10/Exiles | Left Exiles lab with Trap Reconfigurator 167 | -10/Exiles | Entered Mines 174 | -9/Mines | Discovered new exit (range 6) 179 | -9/Mines | Entered Materials 179 | -8/Materials | Evolved 4 slots: Utility x4 203 | -8/Materials | Discovered new exit (range 7) 206 | -8/Materials | Entered Factory 206 | -7/Factory | Evolved 2 slots: Utility x2 237 | -7/Factory | Identified exit to DSF 237 | -7/Factory | Entered DSF 258 | -7/DSF | Additional patrols routed to DSF 259 | -7/DSF | Discovered new exit (range 16) 267 | -7/DSF | Entered Factory 267 | -6/Factory | Evolved 2 slots: Utility x2 292 | -6/Factory | Identified exit to Lower Caves 311 | -6/Factory | Build established: Mutant 460 | -6/Factory | Entered Lower Caves 501 | -6/Lower Caves | Core integrity fell below 50% 535 | -6/Lower Caves | Core integrity fell below 20% 549 | -6/Lower Caves | Found DCF Scrap (12 items) 567 | -6/Lower Caves | Destroyed by S-27 Virus with Autogun Last Messages --------------- 00396_ Acquired Imp. Signal Interpreter. 00398_ Critical hit (Burn: +37). 00428_ W-25 Informer sends out distress signal. LOCATION=LOWER CAVES GOAL=ESCAPE 00549_ Searching scrap... 00549_ Found Imp. Deuterium Engine. 00549_ Found Angular Momentum Engine. 00549_ Found Mak. Power Source. 00549_ Found Arm. Huge Wheel. 00549_ Found Titanium Leg. 00549_ Found Imp. Medium Treads. 00549_ Found Propulsion Shielding. 00549_ Found Mak. Salvage Targeting Computer. 00549_ Found Matter Filter. 00549_ Found Gauss Rifle. 00549_ Found Minigun. 00549_ Found 104 Matter. A note is attached: "With love, from the DCF." 00560_ Acquired 26 matter. Map ----- +----------------------------------------------------+ | ??????????????????????????????????## ##? | | ??????????????????????????????????# #?? | | ?????????????????????????????????## #?? | | ????????????????????????????????## ## #? | | ????????????????????????????????# #### #? | | ????????????????????????????????### ##??# ##? | | ??????????????????????????????????# #???## #?? | | ??????????????????????????????????# #????######?? | | ??????????????????????????????????# ####????###?? | | ??????????????????????????????????# ##???# ## | | ??????????????????????????????????# ##??# | | ?????????????????????????????????## ##?# | | ?????????????????????????????????# ##?# | | ????????????????????????????????## #??# | | ????????????????????????????##### ##??# | | ????????????????#??????????## #???# | | ????????????????# ?????????# ##??## | | ???????????????## ????????# ## ##??# | | ?????????????### ???????# ## #### | | ????????????## ???#### | | ????????????# ??# ## | | ??????????? ##### ######### | | ??????????? ??## ## *#???????### | | ??????????# ?## ####### #?????????? | | ?????????? ## s #?????????? | | ?????????? @ ss s #?????????? | | ????????????# ### ##### ###?????????? | | ??????????????????????## #???# #???????????? | | ???????????????????????## #???# ??????????? | | ????????????????????????## ##???## ????????? | | ?????????????????????????####?????## ## ???????? | | ???????????????????????????????????#####??#??????? | | ?????????????????????????????????????????????????? | | ?????????????????????????????????????????????????? | | ?????????????????????????????????????????????????? | | ?????????????????????????????????????????????????? | | ?????????????????????????????????????????????????? | | ?????????????????????????????????????????????????? | | ?????????????????????????????????????????????????? | | ?????????????????????????????????????????????????? | | ?????????????????????????????????????????????????? | | ?????????????????????????????????????????????????? | | ?????????????????????????????????????????????????? | | ?????????????????????????????????????????????????? | | ?????????????????????????????????????????????????? | | ?????????????????????????????????????????????????? | | ?????????????????????????????????????????????????? | | ?????????????????????????????????????????????????? | | ?????????????????????????????????????????????????? | | | +----------------------------------------------------+ Best States ------------- Heat Dissipation 37 Energy Generation 5 Energy Capacity 100 Matter Stores 234 Matter Capacity 300 Sight Range 16 Terrain Scan Density 10 Evasion (%) 50 Item Schematics ----------------- None Robot Schematics ------------------ None Fabricated ------------ Nothing Repaired ---------- Nothing Studied --------- None Alien Tech Used ----------------- None Achievements -------------- None Challenges ------------ None Game ------ Seed SmartbombFusionLayer Manual? 0 Play Time 00:07:30 Cumulative 633.7 hours Start 2026.09.02 @ 16:10:14 End 2026.09.02 @ 16:16:37 Sessions 1 Manual Loads 0 Difficulty Rogue Special Mode None Game No. 279 Rogue 279 Adventurer 0 Explorer 0 Win Type - Total 38 Types 17/4/6/2/1/2/2/2/1/1 Lore% 91 Gallery% 83 Achievement% 78 Wizard Run 0 Options --------- Layout 0 ASCII 0 Keyboard 1 Movement Arrows Keybinds 0 Fullscreen 2 Font 18/Terminus Map View 76x50 Zoom Use 0% Tactical HUD 1 Map Filters BRIGHTNESS(90)|SATURATION(90) Filters NONE Steam 1 RUN: 858e4b1b-f9d5-4be3-9220-7664dd226f70